bitfinex/quotes_BTCUSD_20221001
["timestamp","ask_amount","ask_price","bid_price","bid_amount"]
[1664600833505,0.06094403,19421.0,19420.0,0.00439992]
[1664600833943,0.53871043,19421.0,19420.0,0.04939992]
[1664600834709,0.89641543,19421.0,19420.0,0.04939992]
[1664600834931,0.53871043,19421.0,19420.0,0.04939992]
[1664600835156,0.49832536,19421.0,19420.0,0.04939992]
[1664600835350,0.49832536,19421.0,19420.0,0.36210492]
[1664600835566,0.49832536,19421.0,19420.0,0.18900292]
[1664600835881,0.49832536,19421.0,19420.0,0.23400292]
[1664600836761,0.49832536,19421.0,19420.0,0.28400292]
[1664600837198,0.85603036,19421.0,19420.0,0.13313292]
[1664600837352,0.89641543,19421.0,19420.0,0.00439992]
[1664600837995,0.89641543,19421.0,19420.0,0.04939992]
[1664600838225,0.53871043,19421.0,19420.0,0.04939992]
[1664600838446,0.89641543,19421.0,19420.0,0.04939992]
[1664600838884,0.53871043,19421.0,19420.0,0.40710492]
[1664600839032,0.53871043,19421.0,19420.0,0.00439992]
[1664600839859,0.53871043,19421.0,19420.0,0.04939992]
[1664600841223,0.53871043,19421.0,19420.0,0.00439992]
[1664600841814,0.53871043,19421.0,19420.0,0.04939992]
[1664600842030,0.53871043,19421.0,19420.0,0.56113136]
[1664600842237,0.49832536,19421.0,19420.0,2.0147055]
[1664600842638,0.49832536,19421.0,19420.0,1.51226336]
[1664600842876,0.49832536,19421.0,19420.0,1.46226336]
[1664600843274,0.49832536,19421.0,19420.0,1.46726336]
[1664600844034,0.49832536,19421.0,19420.0,1.46226336]
[1664600845159,0.49832536,19421.0,19420.0,1.41726336]
[1664600846095,0.49832536,19421.0,19420.0,1.51226336]
[1664600847133,0.49832536,19421.0,19420.0,1.41726336]
[1664600848135,0.49832536,19421.0,19420.0,1.46226336]
[1664600849152,0.49832536,19421.0,19420.0,1.41726336]
[1664600849619,0.49832536,19421.0,19420.0,1.77496836]
[1664600849849,0.49832536,19421.0,19420.0,1.41726336]
[1664600850088,0.49832536,19421.0,19420.0,1.46226336]
[1664600851144,0.49832536,19421.0,19420.0,1.41726336]
[1664600851814,0.49832536,19421.0,19420.0,1.46226336]
[1664600853183,0.49832536,19421.0,19420.0,1.41726336]
[1664600853977,0.49832536,19421.0,19420.0,1.46226336]
[1664600854639,0.49832536,19421.0,19420.0,1.51226336]
[1664600854848,0.02055896,19421.0,19420.0,1.46226336]
[1664600855097,0.02055896,19421.0,19420.0,1.41726336]
[1664600856076,0.02055896,19421.0,19420.0,1.46226336]
[1664600857202,0.02055896,19421.0,19420.0,1.41726336]
[1664600858051,0.02055896,19421.0,19420.0,1.46226336]
[1664600859141,0.02055896,19421.0,19420.0,1.41726336]
[1664600859355,0.02055896,19421.0,19420.0,1.77496836]
[1664600859571,0.02055896,19421.0,19420.0,1.41726336]
[1664600860000,0.02055896,19421.0,19420.0,1.46226336]
[1664600861098,0.02055896,19421.0,19420.0,1.46005823]
[1664600861322,0.02055896,19421.0,19420.0,1.41505823]
[1664600861979,0.02055896,19421.0,19420.0,1.46005823]
[1664600862418,0.50092263,19421.0,19420.0,1.46005823]
[1664600863162,0.50092263,19421.0,19420.0,1.41505823]
[1664600863626,0.02055896,19421.0,19420.0,1.41505823]
[1664600864067,0.02055896,19421.0,19420.0,1.46005823]
[1664600865201,0.02055896,19421.0,19420.0,1.41505823]
[1664600865876,0.02055896,19421.0,19420.0,1.46005823]
[1664600867350,0.02055896,19421.0,19420.0,1.41505823]
[1664600867961,0.02055896,19421.0,19420.0,1.46005823]
[1664600869325,0.02055896,19421.0,19420.0,1.41505823]
[1664600869839,0.02055896,19421.0,19420.0,0.90012523]
[1664600870061,0.02055896,19421.0,19420.0,0.94512523]
[1664600870550,0.50277332,19421.0,19420.0,0.94512523]
[1664600871397,0.50277332,19421.0,19420.0,0.90012523]
[1664600871957,0.50277332,19421.0,19420.0,0.94512523]
[1664600872190,0.50277332,19421.0,19420.0,1.30283023]
[1664600872417,0.50277332,19421.0,19420.0,0.94512523]
[1664600873325,0.50277332,19421.0,19420.0,0.90012523]
[1664600873907,0.50277332,19421.0,19420.0,0.94512523]
[1664600875294,0.50277332,19421.0,19420.0,0.90012523]
[1664600875869,0.50277332,19421.0,19420.0,0.94512523]
[1664600876950,0.02055896,19421.0,19420.0,0.94512523]
[1664600877391,0.02055896,19421.0,19420.0,0.90012523]
[1664600878119,0.02055896,19421.0,19420.0,1.30283023]
[1664600878331,0.02055896,19421.0,19420.0,0.94512523]
[1664600879220,0.02055896,19421.0,19420.0,0.90012523]
[1664600880001,0.02055896,19421.0,19420.0,0.94512523]
[1664600880459,0.02055896,19421.0,19420.0,1.30283023]
[1664600880674,0.02055896,19421.0,19420.0,0.99512523]
[1664600881288,0.02055896,19421.0,19420.0,0.95012523]
[1664600881897,0.02055896,19421.0,19420.0,0.90012523]
[1664600882207,0.02055896,19421.0,19420.0,0.94512523]
[1664600882384,0.02055896,19421.0,19420.0,0.99512523]
[1664600882595,0.02055896,19421.0,19420.0,0.94512523]
[1664600883297,0.4992234,19421.0,19420.0,0.90012523]
[1664600883909,0.4992234,19421.0,19420.0,0.94512523]
[1664600885161,0.4992234,19421.0,19420.0,0.90012523]
[1664600886069,0.4992234,19421.0,19420.0,0.94512523]
[1664600887284,0.4992234,19421.0,19420.0,0.90012523]
[1664600888070,0.4992234,19421.0,19420.0,0.94512523]
[1664600889287,0.4992234,19421.0,19420.0,0.90012523]
[1664600889962,0.4992234,19421.0,19420.0,0.94512523]
[1664600891636,0.4992234,19421.0,19420.0,0.90012523]
[1664600892102,0.4992234,19421.0,19420.0,0.94512523]
[1664600892542,0.02055896,19421.0,19420.0,0.94512523]
[1664600893203,0.02055896,19421.0,19420.0,0.90012523]
[1664600894130,0.02055896,19421.0,19420.0,0.94512523]
[1664600895256,0.02055896,19421.0,19420.0,0.90012523]
[1664600895928,0.02377383,19421.0,19420.0,0.90012523]
[1664600896141,0.02377383,19421.0,19420.0,0.94512523]
[1664600897280,0.02377383,19421.0,19420.0,0.90012523]
[1664600898143,0.02377383,19421.0,19420.0,0.94512523]
[1664600899200,0.4874242,19421.0,19420.0,0.94512523]
[1664600899566,0.4874242,19421.0,19420.0,0.90012523]
[1664600900148,0.4874242,19421.0,19420.0,0.94512523]
[1664600900361,0.02377383,19421.0,19420.0,0.94512523]
[1664600901330,0.0641589,19421.0,19420.0,0.90012523]
[1664600901779,0.41491546,19421.0,19420.0,0.90012523]
[1664600901983,0.0641589,19421.0,19420.0,0.64265923]
[1664600902133,0.0641589,19421.0,19420.0,0.68765923]
[1664600902356,0.41491546,19421.0,19420.0,0.55892623]
[1664600902596,0.41285737,19421.0,19420.0,0.04719479]
[1664600902821,0.41980581,19421.0,19420.0,0.04719479]
[1664600903063,0.06210081,19421.0,19420.0,0.04719479]
[1664600903410,0.41285737,19421.0,19420.0,0.00219479]
[1664600903619,0.41980581,19421.0,19420.0,0.00219479]
[1664600904108,0.41980581,19421.0,19420.0,0.04519479]
[1664600905059,0.06210081,19421.0,19420.0,0.04519479]
[1664600905496,0.41980581,19421.0,19420.0,0.04519479]
[1664600905866,0.41980581,19421.0,19420.0,0.00219479]
[1664600906104,0.54853181,19421.0,19420.0,0.04519479]
[1664600907181,1.02370185,19421.0,19420.0,0.04519479]
[1664600907390,1.02370185,19421.0,19420.0,0.00219479]
[1664600907626,1.08427148,19421.0,19420.0,0.00219479]
[1664600907843,1.02370185,19421.0,19420.0,0.00219479]
[1664600908058,0.95554548,19421.0,19420.0,0.04519479]
[1664600909463,0.95554548,19421.0,19420.0,0.00219479]
[1664600909693,1.08427148,19421.0,19420.0,0.00219479]
[1664600909895,1.08427148,19421.0,19420.0,0.00109479]
[1664600909896,2.24776147,19421.0,19420.0,0.00109479]
[1664600910119,2.24776147,19421.0,19420.0,0.04409479]
[1664600910241,1.89006133,19421.0,19420.0,0.04409479]
[1664600910489,2.75949777,19421.0,19420.0,0.04409479]
[1664600910740,3.66177676,19421.0,19420.0,0.04409479]
[1664600911163,3.56085232,19421.0,19420.0,0.04409479]
[1664600911433,4.16085232,19421.0,19420.0,0.00109479]
[1664600911890,3.66177746,19421.0,19420.0,0.00109479]
[1664600912461,3.56085232,19421.0,19420.0,0.07109479]
[1664600912691,3.68568228,19421.0,19420.0,0.07109479]
[1664600913381,3.68568228,19421.0,19420.0,0.00109479]
[1664600913634,3.08568228,19421.0,19420.0,0.00109479]
[1664600913850,3.68568228,19421.0,19420.0,0.00109479]
[1664600914080,3.08568228,19421.0,19420.0,0.00109479]
[1664600914302,3.18660493,19421.0,19420.0,0.07109479]
[1664600914947,3.26734153,19421.0,19420.0,0.07109479]
[1664600915290,3.26818861,19421.0,19420.0,0.07109479]
[1664600915433,2.95679073,19421.0,19420.0,0.00109479]
[1664600915617,3.05771338,19421.0,19420.0,0.00109479]
[1664600916059,3.05771338,19421.0,19420.0,0.07109479]
[1664600916328,2.95679073,19421.0,19420.0,0.07109479]
[1664600916754,3.26819205,19421.0,19420.0,0.07109479]
[1664600917185,2.95679073,19421.0,19420.0,0.07109479]
[1664600917444,3.26787111,19421.0,19420.0,0.00109479]
[1664600918022,3.75415353,19421.0,19420.0,0.00109479]
[1664600918239,3.75415353,19421.0,19420.0,0.07109479]
[1664600919281,3.44307315,19421.0,19420.0,0.07109479]
[1664600919508,3.5036108,19421.0,19420.0,0.00109479]
[1664600919721,3.44307315,19421.0,19420.0,0.00109479]
[1664600920168,3.50361053,19421.0,19420.0,0.07109479]
[1664600921209,3.50361088,19421.0,19420.0,0.07109479]
[1664600921432,3.44307315,19421.0,19420.0,0.00109479]
[1664600921643,3.50361078,19421.0,19420.0,0.00109479]
[1664600921873,3.44307315,19421.0,19420.0,0.00109479]
[1664600922216,3.50361087,19421.0,19420.0,0.07109479]
[1664600923552,3.50361087,19421.0,19420.0,0.00109479]
[1664600924030,3.50361087,19421.0,19420.0,0.00099779]
[1664600924240,3.50361087,19421.0,19420.0,0.07099779]
[1664600925322,3.01732845,19421.0,19420.0,0.07099779]
[1664600925543,3.01732845,19421.0,19420.0,0.00099779]
[1664600926229,3.01732845,19421.0,19420.0,0.07099779]
[1664600926719,3.26806164,19421.0,19420.0,0.07099779]
[1664600926948,3.86806164,19421.0,19420.0,0.07099779]
[1664600927093,3.26806164,19421.0,19420.0,0.07099779]
[1664600927305,3.26806164,19421.0,19420.0,0.00099779]
[1664600927809,3.26858096,19421.0,19420.0,0.00099779]
[1664600927979,3.65771338,19421.0,19420.0,0.00099779]
[1664600928203,3.65771338,19421.0,19420.0,0.07099779]
[1664600928204,3.86858097,19421.0,19420.0,0.07099779]
[1664600928691,3.78784437,19421.0,19420.0,0.07099779]
[1664600929576,3.78784437,19421.0,19420.0,0.00099779]
[1664600930239,3.78784437,19421.0,19420.0,0.07099779]
[1664600931055,4.26754776,19421.0,19420.0,0.07099779]
[1664600931460,4.26754776,19421.0,19420.0,0.00099779]
[1664600932123,4.26754776,19421.0,19420.0,0.07799779]
[1664600932805,4.34825819,19421.0,19420.0,0.07799779]
[1664600933039,4.26754776,19421.0,19420.0,0.07799779]
[1664600933474,4.26754776,19421.0,19420.0,0.00099779]
[1664600934173,0.00041165,19419.0,19415.0,1.283]
[1664600934399,0.33358633,19418.0,19415.0,1.283]
[1664600934814,0.01562571,19416.0,19415.0,1.283]
[1664600935046,0.47936669,19416.0,19415.0,1.283]
[1664600935346,0.47936669,19416.0,19415.0,0.0011]
[1664600936254,0.01562571,19416.0,19415.0,0.0751]
[1664600937149,0.01562571,19416.0,19415.0,0.0701]
[1664600937620,0.01562571,19416.0,19414.0,0.515113]
[1664600937860,0.01562571,19416.0,19414.0,1.20631364]
[1664600938240,0.01562571,19416.0,19414.0,1.27831364]
[1664600939182,0.01562571,19416.0,19415.0,0.128766]
[1664600940259,0.01562571,19416.0,19415.0,0.202766]
[1664600941677,0.01562571,19416.0,19415.0,0.128766]
[1664600942298,0.01562571,19416.0,19415.0,0.560471]
[1664600942733,0.01562571,19416.0,19415.0,0.202766]
[1664600943492,0.01562571,19416.0,19415.0,0.128766]
[1664600944174,0.49015336,19416.0,19415.0,0.128766]
[1664600944397,0.49015336,19416.0,19415.0,0.202766]
[1664600944614,0.49015336,19416.0,19415.0,0.560471]
[1664600945138,0.49015336,19416.0,19415.0,0.202766]
[1664600945575,0.49015336,19416.0,19415.0,0.386298]
[1664600946153,0.49015336,19416.0,19415.0,0.460298]
[1664600947404,0.49015336,19416.0,19415.0,0.386298]
[1664600948273,0.49015336,19416.0,19415.0,0.460298]
[1664600949663,0.49015336,19416.0,19415.0,0.386298]
[1664600950369,0.49015336,19416.0,19415.0,0.074]
[1664600950669,0.84785836,19416.0,19415.0,0.074]
[1664600950915,0.49015336,19416.0,19415.0,0.074]
[1664600951576,0.49015336,19416.0,19414.0,1.02684644]
[1664600952021,0.29767193,19417.0,19414.0,1.02684644]
[1664600952022,0.48686982,19417.0,19414.0,1.02684644]
[1664600952246,0.83762638,19417.0,19414.0,1.02684644]
[1664600952461,0.01562571,19416.0,19414.0,1.09884644]
[1664600952689,0.01562571,19416.0,19415.0,0.357705]
[1664600953122,0.01562571,19416.0,19414.0,1.09884644]
[1664600953583,0.01562571,19416.0,19414.0,1.26468899]
[1664600954016,0.01562571,19416.0,19415.0,0.128766]
[1664600956273,0.01562571,19416.0,19415.0,0.202766]
[1664600957489,0.49395507,19416.0,19415.0,0.128766]
[1664600958254,0.49395507,19416.0,19415.0,0.202766]
[1664600959628,0.49395507,19416.0,19415.0,0.128766]
[1664600960281,0.49395507,19416.0,19415.0,0.202766]
[1664600962013,0.49395507,19416.0,19415.0,0.128766]
[1664600962408,0.49395507,19416.0,19415.0,0.202766]
[1664600963545,0.49395507,19416.0,19415.0,0.128766]
[1664600964340,0.49395507,19416.0,19415.0,0.202766]
[1664600964578,0.01562571,19416.0,19415.0,0.202766]
[1664600965060,0.01562571,19416.0,19415.0,0.560471]
[1664600965288,0.01562571,19416.0,19415.0,0.818003]
[1664600965515,0.01562571,19416.0,19415.0,0.460298]
[1664600965722,0.01562571,19416.0,19415.0,0.386298]
[1664600966470,0.01562571,19416.0,19415.0,0.460298]
[1664600967135,0.01562571,19416.0,19415.0,1.13362108]
[1664600967358,0.01562571,19416.0,19415.0,2.67237114]
[1664600967605,0.01562571,19416.0,19415.0,2.59837114]
[1664600968517,0.01562571,19416.0,19415.0,2.67237114]
[1664600968872,0.01562571,19416.0,19415.0,2.31466614]
[1664600969086,0.01562571,19416.0,19415.0,2.67237114]
[1664600969319,0.01562571,19416.0,19415.0,2.32161458]
[1664600969537,0.01562571,19416.0,19415.0,1.88990958]
[1664600969935,0.01562571,19416.0,19415.0,2.24761458]
[1664600970358,0.01562571,19416.0,19415.0,1.96390958]
[1664600970546,0.48664521,19416.0,19415.0,1.96390958]
[1664600971251,0.48664521,19416.0,19415.0,2.32161458]
[1664600971496,0.48664521,19416.0,19415.0,1.96390958]
[1664600971715,0.48664521,19416.0,19415.0,1.67831794]
[1664600971865,0.48664521,19416.0,19415.0,2.08602294]
[1664600972248,0.48664521,19416.0,19415.0,4.4367795]
[1664600972475,0.48664521,19416.0,19415.0,5.5707795]
[1664600972706,0.48664521,19416.0,19415.0,6.1707795]
[1664600972927,0.48664521,19416.0,19415.0,6.06682355]
[1664600973051,0.01562571,19416.0,19415.0,6.06682355]
[1664600973596,0.01562571,19416.0,19415.0,6.59282355]
[1664600973810,0.01562571,19416.0,19415.0,5.99282355]
[1664600973972,0.01562571,19416.0,19415.0,6.59282355]
[1664600974389,0.01551102,19416.0,19415.0,6.69774769]
[1664600974608,0.01551102,19416.0,19415.0,6.70514769]
[1664600975043,0.01551102,19416.0,19415.0,6.34744269]
[1664600975300,0.01551102,19416.0,19415.0,6.70514769]
[1664600975725,0.01551102,19416.0,19415.0,6.63114769]
[1664600976619,0.01551102,19416.0,19415.0,6.69314769]
[1664600976776,0.01551102,19416.0,19415.0,6.33544269]
[1664600976989,0.01551102,19416.0,19415.0,6.69314769]
[1664600977716,0.01551102,19416.0,19415.0,6.63114769]
[1664600978358,0.01551102,19416.0,19415.0,6.69314769]
[1664600979766,0.01551102,19416.0,19415.0,6.63114769]
[1664600980402,0.01551102,19416.0,19415.0,6.69314769]
[1664600981115,0.50374507,19416.0,19415.0,6.69314769]
[1664600981817,0.50374507,19416.0,19415.0,6.63114769]
[1664600982230,0.01551102,19416.0,19415.0,6.63114769]
[1664600982458,0.01551102,19416.0,19415.0,6.69314769]
[1664600983837,0.01551102,19416.0,19415.0,6.63114769]
[1664600984511,0.01551102,19416.0,19415.0,6.69314769]
[1664600985199,0.01551102,19416.0,19415.0,7.59314769]
[1664600985646,0.01551102,19416.0,19415.0,6.63114769]
[1664600986429,0.01551102,19416.0,19415.0,6.69314769]
[1664600987750,0.01551102,19416.0,19415.0,6.63114769]
[1664600988436,0.01551102,19416.0,19415.0,6.69314769]
[1664600988747,0.49271355,19416.0,19415.0,6.69314769]
[1664600988979,0.01551102,19416.0,19415.0,6.69314769]
[1664600989199,0.49271355,19416.0,19415.0,6.69314769]
[1664600989655,0.49271355,19416.0,19415.0,6.63114769]
[1664600989804,0.01551102,19416.0,19415.0,6.60022355]
[1664600990427,0.01551102,19416.0,19415.0,6.66222355]
[1664600991889,0.01551102,19416.0,19415.0,6.60022355]
[1664600992588,0.01551102,19416.0,19415.0,6.66222355]
[1664600993615,0.01551102,19416.0,19415.0,6.60022355]
[1664600994462,0.01551102,19416.0,19415.0,6.66222355]
[1664600995624,0.01551102,19416.0,19415.0,6.00022355]
[1664600995834,0.01551102,19416.0,19415.0,6.60022355]
[1664600996533,0.49127952,19416.0,19415.0,6.66222355]
[1664600997682,0.49127952,19416.0,19415.0,6.60022355]
[1664600997860,0.01551102,19416.0,19415.0,6.60022355]
[1664600998530,0.01551102,19416.0,19415.0,6.66222355]
[1664600999555,0.0154413,19416.0,19415.0,6.66222355]
[1664600999781,0.0154413,19416.0,19415.0,6.60022355]
[1664601000471,0.0154413,19416.0,19415.0,7.56222355]
[1664601000688,0.0154413,19416.0,19415.0,6.66222355]
[1664601001349,0.01865397,19416.0,19415.0,7.56222355]
[1664601002530,0.01865397,19416.0,19415.0,6.72222355]
[1664601003778,0.01865397,19416.0,19415.0,6.60022355]
[1664601004511,0.01865397,19416.0,19415.0,6.66022355]
[1664601004676,0.48640601,19416.0,19415.0,6.66022355]
[1664601005636,0.01865397,19416.0,19415.0,7.56022355]
[1664601005871,0.01865397,19416.0,19415.0,6.60022355]
[1664601006098,0.01865397,19416.0,19415.0,7.50022355]
[1664601006564,0.01865397,19416.0,19415.0,7.56022355]
[1664601006814,0.01865397,19416.0,19415.0,6.66022355]
[1664601007841,0.01865397,19416.0,19415.0,5.69886055]
[1664601008285,0.01865397,19416.0,19415.0,6.60022355]
[1664601008464,0.01865397,19416.0,19415.0,7.56022355]
[1664601009170,0.01865397,19416.0,19415.0,6.66022355]
[1664601009771,0.01865397,19416.0,19415.0,6.60022355]
[1664601009985,0.01865397,19416.0,19415.0,7.50022355]
[1664601010194,0.01865397,19416.0,19415.0,6.60022355]
[1664601010411,0.01865397,19416.0,19415.0,6.66022355]
[1664601011818,0.01865397,19416.0,19415.0,6.60022355]
[1664601012055,0.01865397,19416.0,19415.0,7.50022355]
[1664601012490,0.01865397,19416.0,19415.0,7.56022355]
[1664601012707,0.49726472,19416.0,19415.0,7.56022355]
[1664601013567,0.49726472,19416.0,19415.0,6.66022355]
[1664601013791,0.01865397,19416.0,19415.0,6.60022355]
[1664601014682,0.01865397,19416.0,19415.0,6.66022355]
[1664601015853,0.01865397,19416.0,19415.0,6.60022355]
[1664601016418,0.01865397,19416.0,19415.0,6.66022355]
[1664601017778,0.01865397,19416.0,19415.0,6.60022355]
[1664601018437,0.01865397,19416.0,19415.0,6.66022355]
[1664601019806,0.01865397,19416.0,19415.0,6.60022355]
[1664601020435,0.47777017,19416.0,19415.0,6.66022355]
[1664601020668,0.47769096,19416.0,19415.0,6.66022355]
[1664601021328,0.01857476,19416.0,19415.0,6.30251855]
[1664601021548,0.01857476,19416.0,19415.0,6.30936749]
[1664601021776,0.01857476,19416.0,19415.0,6.60012405]
[1664601022011,0.01857476,19416.0,19415.0,6.24936749]
[1664601022231,0.01857476,19416.0,19415.0,5.05342294]
[1664601022461,0.01857476,19416.0,19415.0,5.10602294]
[1664601022688,0.01857476,19416.0,19415.0,4.74831794]
[1664601022908,0.01857476,19416.0,19415.0,5.10602294]
[1664601023613,0.01857476,19416.0,19415.0,5.15602294]
[1664601024073,0.01857476,19416.0,19415.0,5.14602294]
[1664601024579,0.01857476,19416.0,19415.0,5.20602294]
[1664601025830,0.01857476,19416.0,19415.0,5.14602294]
[1664601026409,0.01857476,19416.0,19415.0,5.09602294]
[1664601026625,0.01857476,19416.0,19415.0,5.15002294]
[1664601027091,0.01857476,19416.0,19415.0,5.20002294]
[1664601027520,0.01857476,19416.0,19415.0,4.84231794]
[1664601027750,0.01857476,19416.0,19415.0,5.14602294]
[1664601028190,0.50638978,19416.0,19415.0,5.14602294]
[1664601028641,0.50638978,19416.0,19415.0,5.20002294]
[1664601029340,0.50638978,19416.0,19415.0,5.15002294]
[1664601029563,0.50638978,19416.0,19415.0,5.20002294]
[1664601029783,0.50638978,19416.0,19415.0,5.14602294]
[1664601030134,0.50638978,19416.0,19415.0,5.09602294]
[1664601030346,0.50638978,19416.0,19415.0,4.73831794]
[1664601030566,0.50638978,19416.0,19415.0,5.20002294]
[1664601031295,0.50638978,19416.0,19415.0,5.15002294]
[1664601031743,0.50638978,19416.0,19415.0,4.74231794]
[1664601031953,0.50638978,19416.0,19415.0,5.09602294]
[1664601032131,0.50638978,19416.0,19415.0,5.04602294]
[1664601032371,0.50638978,19416.0,19415.0,4.73831794]
[1664601032545,0.50638978,19416.0,19415.0,5.20002294]
[1664601032755,0.50638978,19416.0,19415.0,4.74231794]
[1664601032966,0.50638978,19416.0,19415.0,1.68231794]
[1664601033214,0.50638978,19416.0,19415.0,2.04002294]
[1664601033431,0.01857476,19416.0,19415.0,1.68231794]
[1664601033789,0.01857476,19416.0,19415.0,2.09002294]
[1664601034016,0.01857476,19416.0,19415.0,2.03602294]
[1664601034227,0.01857476,19416.0,19415.0,1.67831794]
[1664601034427,0.01857476,19416.0,19415.0,0.82695494]
[1664601034694,0.01857476,19416.0,19415.0,1.23865994]
[1664601035379,0.01857476,19416.0,19415.0,0.78095494]
[1664601035598,0.01857476,19416.0,19415.0,1.13865994]
[1664601035817,0.01857476,19416.0,19415.0,1.08465994]
[1664601036648,0.01857476,19416.0,19415.0,1.13865994]
[1664601036861,0.01857476,19416.0,19415.0,0.90334093]
[1664601037466,0.01857476,19416.0,19415.0,1.26104593]
[1664601037699,0.01857476,19416.0,19415.0,1.36104593]
[1664601037925,0.01857476,19416.0,19415.0,1.30704593]
[1664601038583,0.49514189,19416.0,19415.0,1.30704593]
[1664601038718,0.49514189,19416.0,19415.0,1.23865994]
[1664601039828,0.01857476,19416.0,19415.0,1.18465994]
[1664601040498,0.01857476,19416.0,19415.0,5.1954165]
[1664601040735,0.01857476,19416.0,19415.0,5.28034064]
[1664601041647,0.01857476,19416.0,19415.0,4.68034064]
[1664601041858,0.01857476,19416.0,19415.0,5.1157718]
[1664601042596,0.01857476,19416.0,19415.0,5.7697718]
[1664601044008,0.01857476,19416.0,19415.0,5.7157718]
[1664601044740,0.01857476,19416.0,19415.0,5.7771718]
[1664601044950,0.01857476,19416.0,19415.0,5.1771718]
[1664601045154,0.01857476,19416.0,19415.0,5.7771718]
[1664601046146,0.01857476,19416.0,19415.0,2.6631718]
[1664601046453,0.01857476,19416.0,19415.0,2.17374064]
[1664601046605,0.01857476,19416.0,19415.0,2.23374064]
[1664601046818,0.48593311,19416.0,19415.0,2.23374064]
[1664601047283,0.48582467,19416.0,19415.0,2.23374064]
[1664601047491,0.48582467,19416.0,19415.0,2.4785118]
[1664601047983,0.48582467,19416.0,19415.0,2.4185118]
[1664601048863,0.48582467,19416.0,19415.0,2.4865118]
[1664601049092,0.01846632,19416.0,19415.0,2.4865118]
[1664601050065,0.01846632,19416.0,19415.0,2.4185118]
[1664601050725,0.01846632,19416.0,19415.0,2.4865118]
[1664601052116,0.01846632,19416.0,19415.0,2.4185118]
[1664601052785,0.01846632,19416.0,19415.0,2.4725118]
[1664601054179,0.01846632,19416.0,19415.0,2.4185118]
[1664601054843,0.01846632,19416.0,19415.0,2.4785118]
[1664601055276,0.50320401,19416.0,19415.0,2.4785118]
[1664601055580,0.01846632,19416.0,19415.0,2.4785118]
[1664601056075,0.01846632,19416.0,19415.0,5.4785118]
[1664601056494,0.01846632,19416.0,19415.0,5.1208068]
[1664601056644,0.01846632,19416.0,19415.0,5.5385118]
[1664601057947,0.01846632,19416.0,19415.0,5.4785118]
[1664601058605,0.01846632,19416.0,19415.0,5.5385118]
[1664601059953,0.01846632,19416.0,19415.0,5.4785118]
[1664601060187,0.01846632,19416.0,19415.0,4.5208068]
[1664601060412,0.01846632,19416.0,19415.0,4.4208068]
[1664601060625,0.01846632,19416.0,19415.0,4.8385118]
[1664601060847,0.01846632,19416.0,19415.0,4.4808068]
[1664601061315,0.01846632,19416.0,19415.0,4.8385118]
[1664601061530,0.01846632,19416.0,19415.0,5.5385118]
[1664601061954,0.01846632,19416.0,19415.0,5.4785118]
[1664601062285,0.50566049,19416.0,19415.0,5.4785118]
[1664601062802,0.50566049,19416.0,19415.0,5.5385118]
[1664601063004,0.01846632,19416.0,19415.0,5.5385118]
[1664601064113,0.01846632,19416.0,19415.0,5.4785118]
[1664601064877,0.01846632,19416.0,19415.0,5.5385118]
[1664601065199,0.01846632,19416.0,19415.0,4.21205994]
[1664601065309,0.01846632,19416.0,19415.0,2.21078294]
[1664601065519,0.01846632,19416.0,19415.0,5.27078294]
[1664601065972,0.01846632,19416.0,19415.0,5.21078294]
[1664601066596,0.01846632,19416.0,19415.0,5.26078294]
[1664601066833,0.01846632,19416.0,19415.0,5.36678294]
[1664601067115,0.01846632,19416.0,19415.0,5.31678294]
[1664601067477,0.01846632,19416.0,19415.0,5.36678294]
[1664601067661,0.01846632,19416.0,19415.0,5.72448794]
[1664601067879,0.01846632,19416.0,19415.0,5.66848794]
[1664601068094,0.01846632,19416.0,19415.0,5.99868574]
[1664601068867,0.01846632,19416.0,19415.0,5.69698074]
[1664601069083,0.01846632,19416.0,19415.0,6.05468574]
[1664601069300,0.01846632,19416.0,19415.0,5.69698074]
[1664601069524,0.01846632,19416.0,19415.0,6.05468574]
[1664601069743,0.50143435,19416.0,19415.0,6.05468574]
[1664601069968,0.50143435,19416.0,19415.0,5.72448794]
[1664601070185,0.50143435,19416.0,19415.0,5.66848794]
[1664601070681,0.50143435,19416.0,19415.0,5.21078294]
[1664601070812,0.50143435,19416.0,19415.0,5.31678294]
[1664601071040,0.50143435,19416.0,19415.0,5.72448794]
[1664601071879,0.50143435,19416.0,19415.0,5.36678294]
[1664601072087,0.50143435,19416.0,19415.0,5.31078294]
[1664601072309,0.50143435,19416.0,19415.0,5.66848794]
[1664601072788,0.50143435,19416.0,19415.0,5.72448794]
[1664601074122,0.50143435,19416.0,19415.0,5.66848794]
[1664601074810,0.50143435,19416.0,19415.0,5.73048794]
[1664601075019,0.50143435,19416.0,19415.0,5.86882699]
[1664601075252,0.50143435,19416.0,19415.0,6.22653199]
[1664601075469,0.50143435,19416.0,19415.0,5.86882699]
[1664601075693,0.01846632,19416.0,19415.0,6.22653199]
[1664601075901,0.01846632,19416.0,19415.0,5.86882699]
[1664601076111,0.01846632,19416.0,19415.0,5.80682699]
[1664601076354,0.01846632,19416.0,19415.0,6.16453199]
[1664601076821,0.01846632,19416.0,19415.0,6.22053199]
[1664601078133,0.01846632,19416.0,19415.0,6.16453199]
[1664601078348,0.01846632,19416.0,19415.0,5.80682699]
[1664601078781,0.01846632,19416.0,19415.0,6.22053199]
[1664601078989,0.01846632,19416.0,19415.0,5.86282699]
[1664601079266,0.01846632,19416.0,19415.0,6.22053199]
[1664601079482,0.01846632,19416.0,19415.0,5.86282699]
[1664601079701,0.01846632,19416.0,19415.0,6.22053199]
[1664601080140,0.01846632,19416.0,19415.0,6.16453199]
[1664601080890,0.01846632,19416.0,19415.0,5.86282699]
[1664601081296,0.01846632,19416.0,19415.0,6.22053199]
[1664601082517,0.01846632,19416.0,19415.0,5.80682699]
[1664601082751,0.48754188,19416.0,19415.0,6.22053199]
[1664601083150,0.48754188,19416.0,19415.0,6.82053199]
[1664601084055,0.48754188,19416.0,19415.0,6.16453199]
[1664601084990,0.48754188,19416.0,19415.0,6.82053199]
[1664601085451,0.48754188,19416.0,19415.0,6.22053199]
[1664601086385,0.48754188,19416.0,19415.0,6.16453199]
[1664601086952,0.48754188,19416.0,19415.0,6.22053199]
[1664601087388,0.48754188,19416.0,19415.0,5.86282699]
[1664601087890,0.48754188,19416.0,19415.0,6.22053199]
[1664601088167,0.48754188,19416.0,19415.0,6.16453199]
[1664601088599,0.48754188,19416.0,19415.0,5.80682699]
[1664601088813,0.48754188,19416.0,19415.0,6.22053199]
[1664601089271,0.48754188,19416.0,19415.0,5.86282699]
[1664601089440,0.48754188,19416.0,19415.0,6.22053199]
[1664601089655,0.48754188,19416.0,19415.0,5.86282699]
[1664601089867,0.48754188,19416.0,19415.0,6.22053199]
[1664601090106,0.48754188,19416.0,19415.0,6.16453199]
[1664601090764,0.48754188,19416.0,19415.0,6.22653199]
[1664601090978,0.48754188,19416.0,19415.0,5.86882699]
[1664601091378,0.48754188,19416.0,19415.0,6.22653199]
[1664601092234,0.48754188,19416.0,19415.0,6.16453199]
[1664601092904,0.48754188,19416.0,19415.0,5.86282699]
[1664601093139,0.48754188,19416.0,19415.0,6.22053199]